[Event "*** Titled Tuesday Blitz"]
[Site "Chess.com"]
[Date "2019.07.02"]
[Round "4"]
[White "IngOscarArdila"]
[Black "NM2019"]
[Result "0-1"]
[WhiteElo "2033"]
[BlackElo "2126"]
[TimeControl "180+2"]
[EndTime "13:52:38 PDT"]
[Termination "NM2019 won on time"]

1. d4 {[%clk 0:03:01.8]} 1... c5 {[%clk 0:03:00.4]} 2. Nf3 {[%clk 0:03:00.7]}
2... d5 {[%clk 0:02:58.7]} 3. e3 {[%clk 0:02:37.8]} 3... Nc6 {[%clk 0:03:00]} 4.
Bb5 {[%clk 0:02:33.9]} 4... Bg4 {[%clk 0:03:00.3]} 5. O-O {[%clk 0:02:30.4]}
5... e6 {[%clk 0:03:00.5]} 6. h3 {[%clk 0:02:29.3]} 6... Bxf3 {[%clk 0:02:59.8]}
7. Qxf3 {[%clk 0:02:29.5]} 7... cxd4 {[%clk 0:03:01]} 8. exd4 {[%clk 0:02:30.3]}
8... Qb6 {[%clk 0:03:01.8]} 9. Bxc6+ {[%clk 0:02:19.8]} 9... bxc6 {[%clk
0:03:03]} 10. c3 {[%clk 0:02:19.9]} 10... Nf6 {[%clk 0:03:03]} 11. Nd2 {[%clk
0:02:19.9]} 11... c5 {[%clk 0:03:04.3]} 12. dxc5 {[%clk 0:02:12]} 12... Bxc5
{[%clk 0:03:04.2]} 13. Nb3 {[%clk 0:02:12.3]} 13... O-O {[%clk 0:03:04.3]} 14.
Nxc5 {[%clk 0:02:07]} 14... Qxc5 {[%clk 0:03:04.6]} 15. Be3 {[%clk 0:02:08.7]}
15... Qb5 {[%clk 0:03:01.9]} 16. Bd4 {[%clk 0:02:08.7]} 16... Ne4 {[%clk
0:03:02.4]} 17. b4 {[%clk 0:02:02.8]} 17... a5 {[%clk 0:02:44.5]} 18. a4 {[%clk
0:02:01.8]} 18... Qc4 {[%clk 0:02:41.4]} 19. b5 {[%clk 0:01:54]} 19... Rac8
{[%clk 0:02:39.9]} 20. Rfc1 {[%clk 0:01:52]} 20... f5 {[%clk 0:02:33.6]} 21. Qf4
{[%clk 0:01:45.3]} 21... Rf7 {[%clk 0:02:31.6]} 22. Qe5 {[%clk 0:01:34.3]} 22...
Re8 {[%clk 0:02:13.7]} 23. Rcb1 {[%clk 0:01:24]} 23... Qc7 {[%clk 0:02:13]} 24.
b6 {[%clk 0:01:17.4]} 24... Qxe5 {[%clk 0:02:12.3]} 25. Bxe5 {[%clk 0:01:17.7]}
25... Rb7 {[%clk 0:02:13.8]} 26. Rb5 {[%clk 0:01:17.3]} 26... Ra8 {[%clk
0:02:12.7]} 27. f3 {[%clk 0:00:48.5]} 27... Nd2 {[%clk 0:02:13.2]} 28. Re1
{[%clk 0:00:44]} 28... Kf7 {[%clk 0:02:13.6]} 29. Bc7 {[%clk 0:00:40.2]} 29...
Nc4 {[%clk 0:02:09.2]} 30. Kf2 {[%clk 0:00:33.3]} 30... Ke7 {[%clk 0:02:02.6]}
31. Rxd5 {[%clk 0:00:30]} 31... Nxb6 {[%clk 0:02:03]} 32. Bxb6 {[%clk
0:00:29.5]} 32... Rxb6 {[%clk 0:02:04.2]} 33. Rxf5 {[%clk 0:00:30.2]} 33... Rb2+
{[%clk 0:02:01.8]} 34. Kg1 {[%clk 0:00:31.1]} 34... Ra2 {[%clk 0:02:03]} 35. Rf4
{[%clk 0:00:26.9]} 35... Ra3 {[%clk 0:01:57.3]} 36. Rc4 {[%clk 0:00:13.5]} 36...
Ra7 {[%clk 0:01:56.4]} 37. Kf2 {[%clk 0:00:14.3]} 37... Kf6 {[%clk 0:01:56.4]}
38. Ke3 {[%clk 0:00:08.3]} 38... Rd7 {[%clk 0:01:55.5]} 39. Re2 {[%clk
0:00:02.7]} 39... Ra1 {[%clk 0:01:54.8]} 40. g4 {[%clk 0:00:02]} 40... Rdd1
{[%clk 0:01:55.2]} 41. f4 {[%clk 0:00:02.5]} 41... h6 {[%clk 0:01:54.3]} 42. Ke4
{[%clk 0:00:01.8]} 42... Rh1 {[%clk 0:01:45.1]} 43. Re3 {[%clk 0:00:01.8]} 43...
Rhf1 {[%clk 0:01:36.7]} 44. f5 {[%clk 0:00:02.1]} 44... exf5+ {[%clk 0:01:36.4]}
0-1

[Event "*** Titled Tuesday Blitz"]
[Site "Chess.com"]
[Date "2019.07.02"]
[Round "4"]
[White "monalize"]
[Black "GremioPrudente"]
[Result "1/2-1/2"]
[WhiteElo "2333"]
[BlackElo "2228"]
[TimeControl "180+2"]
[EndTime "13:52:41 PDT"]
[Termination "Game drawn by repetition"]

1. e4 {[%clk 0:03:01.9]} 1... e6 {[%clk 0:02:34.4]} 2. d4 {[%clk 0:03:01.2]}
2... d5 {[%clk 0:02:34.7]} 3. Nd2 {[%clk 0:03:01.6]} 3... Nf6 {[%clk 0:02:35.2]}
4. e5 {[%clk 0:03:01.9]} 4... Nfd7 {[%clk 0:02:35.8]} 5. Bd3 {[%clk 0:03:02.6]}
5... c5 {[%clk 0:02:37]} 6. c3 {[%clk 0:03:03.1]} 6... Nc6 {[%clk 0:02:38.6]} 7.
Ndf3 {[%clk 0:03:03.6]} 7... Qb6 {[%clk 0:02:40.1]} 8. Ne2 {[%clk 0:03:04.3]}
8... cxd4 {[%clk 0:02:41]} 9. cxd4 {[%clk 0:03:05.1]} 9... f6 {[%clk 0:02:42.6]}
10. exf6 {[%clk 0:03:04]} 10... Nxf6 {[%clk 0:02:43.2]} 11. O-O {[%clk
0:03:04.1]} 11... Bd6 {[%clk 0:02:44.2]} 12. b3 {[%clk 0:02:53.6]} 12... O-O
{[%clk 0:02:43.3]} 13. Ng3 {[%clk 0:02:20.3]} 13... Bd7 {[%clk 0:02:20.1]} 14.
Re1 {[%clk 0:02:15.3]} 14... Kh8 {[%clk 0:01:50.7]} 15. Bb2 {[%clk 0:02:14.2]}
15... Rae8 {[%clk 0:01:17.5]} 16. Rc1 {[%clk 0:02:09.6]} 16... Bf4 {[%clk
0:01:13.3]} 17. Rc5 {[%clk 0:01:47.8]} 17... e5 {[%clk 0:01:07.2]} 18. Rb5
{[%clk 0:01:44.1]} 18... Qc7 {[%clk 0:01:03.9]} 19. dxe5 {[%clk 0:01:40.8]}
19... Nxe5 {[%clk 0:00:53.3]} 20. Bxe5 {[%clk 0:01:26.5]} 20... Bxe5 {[%clk
0:00:45.9]} 21. Rb4 {[%clk 0:01:17.6]} 21... Bg4 {[%clk 0:00:40.7]} 22. Bf1
{[%clk 0:00:36.2]} 22... Bxf3 {[%clk 0:00:36]} 23. Qxf3 {[%clk 0:00:34.7]} 23...
Bxg3 {[%clk 0:00:25.6]} 24. Rxe8 {[%clk 0:00:33.6]} 24... Bxh2+ {[%clk
0:00:25.3]} 25. Kh1 {[%clk 0:00:34.4]} 25... Rxe8 {[%clk 0:00:26.7]} 26. g3
{[%clk 0:00:35]} 26... Bxg3 {[%clk 0:00:21.3]} 27. fxg3 {[%clk 0:00:35.4]} 27...
Ne4 {[%clk 0:00:20.8]} 28. Kh2 {[%clk 0:00:28.8]} 28... Nd2 {[%clk 0:00:15.8]}
29. Qf2 {[%clk 0:00:26.4]} 29... Nxf1+ {[%clk 0:00:14.5]} 30. Qxf1 {[%clk
0:00:27.2]} 30... h6 {[%clk 0:00:15.5]} 31. Rf4 {[%clk 0:00:27.1]} 31... Qc2+
{[%clk 0:00:13.7]} 32. Rf2 {[%clk 0:00:27.6]} 32... Qg6 {[%clk 0:00:11.2]} 33.
Qb5 {[%clk 0:00:21.8]} 33... Rg8 {[%clk 0:00:08.6]} 34. Qxd5 {[%clk 0:00:21.1]}
34... b6 {[%clk 0:00:08.3]} 35. Qe5 {[%clk 0:00:20.9]} 35... Qg4 {[%clk
0:00:06.7]} 36. Kg2 {[%clk 0:00:20.2]} 36... Qb4 {[%clk 0:00:06.5]} 37. Kh2
{[%clk 0:00:20.6]} 37... Qg4 {[%clk 0:00:07.2]} 38. Kg2 {[%clk 0:00:21.3]} 38...
Qb4 {[%clk 0:00:08.2]} 39. Kh2 {[%clk 0:00:22.3]} 39... Qg4 {[%clk 0:00:09.2]}
1/2-1/2

[Event "*** Titled Tuesday Blitz"]
[Site "Chess.com"]
[Date "2019.07.02"]
[Round "4"]
[White "Kubas1010"]
[Black "axvesik"]
[Result "1-0"]
[WhiteElo "2621"]
[BlackElo "2433"]
[TimeControl "180+2"]
[EndTime "13:52:42 PDT"]
[Termination "Kubas1010 won by resignation"]

1. d4 {[%clk 0:03:01.2]} 1... Nf6 {[%clk 0:02:59.9]} 2. c4 {[%clk 0:03:02]} 2...
e6 {[%clk 0:03:00.8]} 3. Nf3 {[%clk 0:03:02.8]} 3... b6 {[%clk 0:03:01]} 4. a3
{[%clk 0:03:00.6]} 4... Ba6 {[%clk 0:02:59.5]} 5. Qc2 {[%clk 0:02:54.5]} 5... c5
{[%clk 0:02:59.5]} 6. d5 {[%clk 0:02:53.8]} 6... exd5 {[%clk 0:02:59.2]} 7. cxd5
{[%clk 0:02:55.7]} 7... g6 {[%clk 0:02:57.4]} 8. Nc3 {[%clk 0:02:54.7]} 8... Bg7
{[%clk 0:02:56.1]} 9. h4 {[%clk 0:02:55.4]} 9... d6 {[%clk 0:02:48.3]} 10. h5
{[%clk 0:02:46.9]} 10... Nxh5 {[%clk 0:02:47.2]} 11. g4 {[%clk 0:02:47.9]} 11...
Nf6 {[%clk 0:02:45.8]} 12. Bh6 {[%clk 0:02:49]} 12... Bxh6 {[%clk 0:02:43.3]}
13. Rxh6 {[%clk 0:02:50.9]} 13... Nxg4 {[%clk 0:02:44.8]} 14. Qe4+ {[%clk
0:02:48]} 14... Kf8 {[%clk 0:02:36.5]} 15. Qxg4 {[%clk 0:02:46.3]} 15... Kg7
{[%clk 0:02:30.5]} 16. Qf4 {[%clk 0:02:31.9]} 16... Nd7 {[%clk 0:02:14.5]} 17.
Rh4 {[%clk 0:02:30.2]} 17... Qe7 {[%clk 0:02:07.7]} 18. Qh6+ {[%clk 0:02:29.5]}
18... Kg8 {[%clk 0:02:07.9]} 19. Re4 {[%clk 0:01:59.8]} 19... Qf6 {[%clk
0:01:50.2]} 20. Rf4 {[%clk 0:01:47.1]} 20... Qe7 {[%clk 0:01:42.7]} 21. Ne4
{[%clk 0:01:46]} 21... f5 {[%clk 0:01:34.3]} 22. Ng3 {[%clk 0:01:27.6]} 22...
Bb7 {[%clk 0:00:57.1]} 23. O-O-O {[%clk 0:01:18.9]} 23... Qg7 {[%clk 0:00:55.6]}
24. Qxg7+ {[%clk 0:01:07.9]} 24... Kxg7 {[%clk 0:00:56.3]} 25. Bh3 {[%clk
0:01:03.9]} 25... Nf6 {[%clk 0:00:56.1]} 26. e4 {[%clk 0:00:54.7]} 26... fxe4
{[%clk 0:00:55.5]} 27. Nxe4 {[%clk 0:00:54.1]} 27... Nxd5 {[%clk 0:00:55.5]} 28.
Rh4 {[%clk 0:00:41.2]} 28... Rad8 {[%clk 0:00:50.4]} 29. Nfg5 {[%clk 0:00:41.9]}
29... Nc7 {[%clk 0:00:49.9]} 30. Nxd6 {[%clk 0:00:42.2]} 30... Bd5 {[%clk
0:00:37.2]} 31. Rxd5 {[%clk 0:00:41.4]} 31... Nxd5 {[%clk 0:00:35.4]} 32. Ne6+
{[%clk 0:00:42.6]} 32... Kf6 {[%clk 0:00:36.2]} 33. Nxd8 {[%clk 0:00:43]} 33...
Rxd8 {[%clk 0:00:37]} 34. Ne4+ {[%clk 0:00:44.2]} 34... Ke5 {[%clk 0:00:38.1]}
35. Ng5 {[%clk 0:00:43.5]} 35... Rf8 {[%clk 0:00:30.8]} 36. Re4+ {[%clk
0:00:44]} 36... Kd6 {[%clk 0:00:31.8]} 37. Re2 {[%clk 0:00:40.9]} 37... h6
{[%clk 0:00:25.4]} 38. Ne4+ {[%clk 0:00:39.9]} 38... Kc7 {[%clk 0:00:26.4]} 39.
Rd2 {[%clk 0:00:39.4]} 39... Nf4 {[%clk 0:00:23.2]} 40. Bf1 {[%clk 0:00:38.4]}
40... Re8 {[%clk 0:00:22.5]} 41. f3 {[%clk 0:00:38.9]} 41... h5 {[%clk
0:00:21.4]} 42. Bb5 {[%clk 0:00:39.7]} 42... Re7 {[%clk 0:00:21.6]} 43. Rd6
{[%clk 0:00:36.9]} 43... Rg7 {[%clk 0:00:20.2]} 44. Rf6 {[%clk 0:00:37.2]} 44...
Nd5 {[%clk 0:00:19.2]} 45. Rc6+ {[%clk 0:00:37.2]} 45... Kb7 {[%clk 0:00:19.8]}
46. Nd6+ {[%clk 0:00:38.2]} 1-0

[Event "*** Titled Tuesday Blitz"]
[Site "Chess.com"]
[Date "2019.07.02"]
[Round "4"]
[White "GrigorGrigorov"]
[Black "Supernotar"]
[Result "1-0"]
[WhiteElo "2775"]
[BlackElo "2610"]
[TimeControl "180+2"]
[EndTime "13:52:43 PDT"]
[Termination "GrigorGrigorov won on time"]

1. d4 {[%clk 0:03:01.9]} 1... d5 {[%clk 0:02:59.6]} 2. c4 {[%clk 0:03:01.9]}
2... dxc4 {[%clk 0:03:00.7]} 3. e3 {[%clk 0:03:02.6]} 3... Nf6 {[%clk
0:03:01.8]} 4. Bxc4 {[%clk 0:03:02.9]} 4... e6 {[%clk 0:03:02.8]} 5. Nf3 {[%clk
0:03:04.3]} 5... a6 {[%clk 0:03:04.2]} 6. O-O {[%clk 0:03:04.8]} 6... b5 {[%clk
0:03:05.4]} 7. Bd3 {[%clk 0:03:05.5]} 7... Bb7 {[%clk 0:03:06.6]} 8. a4 {[%clk
0:03:05.8]} 8... b4 {[%clk 0:03:07.7]} 9. Qe2 {[%clk 0:03:05.6]} 9... Nbd7
{[%clk 0:03:08.7]} 10. Nbd2 {[%clk 0:03:05.9]} 10... c5 {[%clk 0:03:09.1]} 11.
a5 {[%clk 0:03:06.8]} 11... Qc7 {[%clk 0:03:10]} 12. Nc4 {[%clk 0:03:06.8]}
12... Be7 {[%clk 0:03:11]} 13. Bd2 {[%clk 0:03:07.6]} 13... O-O {[%clk 0:03:11]}
14. Rfc1 {[%clk 0:03:08.1]} 14... Rac8 {[%clk 0:03:08.6]} 15. Nce5 {[%clk
0:03:04.7]} 15... Nxe5 {[%clk 0:02:27.9]} 16. Nxe5 {[%clk 0:03:02.5]} 16... Qd6
{[%clk 0:02:14.9]} 17. Nc4 {[%clk 0:02:26]} 17... Qc6 {[%clk 0:01:49.6]} 18. Qf1
{[%clk 0:02:13.7]} 18... Ne4 {[%clk 0:01:41.6]} 19. Be1 {[%clk 0:01:45.1]} 19...
cxd4 {[%clk 0:01:39.9]} 20. exd4 {[%clk 0:01:43.7]} 20... Rfd8 {[%clk
0:01:21.7]} 21. f3 {[%clk 0:01:39.3]} 21... Nf6 {[%clk 0:01:15.5]} 22. Bf2
{[%clk 0:01:39.6]} 22... Qe8 {[%clk 0:00:54.6]} 23. Nb6 {[%clk 0:01:36.9]} 23...
Rxc1 {[%clk 0:00:55]} 24. Rxc1 {[%clk 0:01:38.4]} 24... Nd5 {[%clk 0:00:37.3]}
25. Bxa6 {[%clk 0:01:35.8]} 25... Bxa6 {[%clk 0:00:37.9]} 26. Qxa6 {[%clk
0:01:35.9]} 26... Bg5 {[%clk 0:00:36.1]} 27. Rc8 {[%clk 0:01:33.9]} 27... Nxb6
{[%clk 0:00:18.8]} 28. Rxd8 {[%clk 0:01:32.4]} 28... Bxd8 {[%clk 0:00:17.5]} 29.
axb6 {[%clk 0:01:32.7]} 29... Qc6 {[%clk 0:00:18.7]} 30. d5 {[%clk 0:01:31.6]}
30... exd5 {[%clk 0:00:13.9]} 31. g3 {[%clk 0:01:20.4]} 31... h5 {[%clk
0:00:09.2]} 32. Kg2 {[%clk 0:01:14.7]} 32... h4 {[%clk 0:00:09.9]} 33. Qa7
{[%clk 0:01:10.9]} 33... Qe6 {[%clk 0:00:04.7]} 34. b7 {[%clk 0:01:01.2]} 34...
h3+ {[%clk 0:00:05.7]} 35. Kf1 {[%clk 0:01:02.2]} 35... Qf5 {[%clk 0:00:05.3]}
36. b8=Q {[%clk 0:00:59.9]} 36... Qd3+ {[%clk 0:00:05.7]} 37. Ke1 {[%clk
0:00:59.5]} 37... Qb1+ {[%clk 0:00:06.6]} 38. Ke2 {[%clk 0:00:57]} 38... Qc2+
{[%clk 0:00:06.8]} 39. Ke3 {[%clk 0:00:54.1]} 39... Qc1+ {[%clk 0:00:06.9]} 40.
Kd4 {[%clk 0:00:53]} 40... Qc4+ {[%clk 0:00:07.9]} 41. Ke5 {[%clk 0:00:51.5]}
41... f6+ {[%clk 0:00:08.7]} 42. Kd6 {[%clk 0:00:51.2]} 42... Kh7 {[%clk
0:00:03.7]} 43. Qxd8 {[%clk 0:00:51.2]} 43... d4 {[%clk 0:00:03.3]} 44. Qdd7
{[%clk 0:00:50.6]} 1-0

[Event "*** Titled Tuesday Blitz"]
[Site "Chess.com"]
[Date "2019.07.02"]
[Round "4"]
[White "DenisQ"]
[Black "Ali_rastbod"]
[Result "1-0"]
[WhiteElo "2626"]
[BlackElo "2746"]
[TimeControl "180+2"]
[EndTime "13:52:55 PDT"]
[Termination "DenisQ won on time"]

1. Nf3 {[%clk 0:03:01.9]} 1... d5 {[%clk 0:02:53.9]} 2. c4 {[%clk 0:03:02.1]}
2... d4 {[%clk 0:02:53.5]} 3. g3 {[%clk 0:03:02.3]} 3... Nc6 {[%clk 0:02:53.2]}
4. Bg2 {[%clk 0:03:02.8]} 4... e5 {[%clk 0:02:54.9]} 5. O-O {[%clk 0:03:03.5]}
5... e4 {[%clk 0:02:42.3]} 6. Ne1 {[%clk 0:03:04]} 6... Nf6 {[%clk 0:02:40.1]}
7. d3 {[%clk 0:03:04.3]} 7... Bf5 {[%clk 0:02:32.9]} 8. Bg5 {[%clk 0:03:03.6]}
8... exd3 {[%clk 0:02:33.8]} 9. Nxd3 {[%clk 0:03:03.9]} 9... Be7 {[%clk
0:02:33.1]} 10. Nd2 {[%clk 0:02:55.7]} 10... O-O {[%clk 0:02:30.7]} 11. Qb3
{[%clk 0:02:34.2]} 11... Rb8 {[%clk 0:02:27.8]} 12. Rad1 {[%clk 0:02:33.2]}
12... h6 {[%clk 0:02:26.3]} 13. Bxf6 {[%clk 0:02:33.4]} 13... Bxf6 {[%clk
0:02:28.2]} 14. Ne4 {[%clk 0:02:30]} 14... Be7 {[%clk 0:02:28]} 15. Nf4 {[%clk
0:02:28.7]} 15... Re8 {[%clk 0:02:01.9]} 16. Nd2 {[%clk 0:02:11.7]} 16... Bf8
{[%clk 0:01:49.6]} 17. Nf3 {[%clk 0:02:09.3]} 17... Bc5 {[%clk 0:01:24.6]} 18.
e3 {[%clk 0:01:54.8]} 18... Be4 {[%clk 0:01:25.8]} 19. Nxd4 {[%clk 0:01:39.8]}
19... Bxd4 {[%clk 0:01:14.2]} 20. exd4 {[%clk 0:01:37.4]} 20... Bxg2 {[%clk
0:01:12.9]} 21. Kxg2 {[%clk 0:01:36.3]} 21... Nxd4 {[%clk 0:01:13.8]} 22. Qa3
{[%clk 0:01:10]} 22... Qf6 {[%clk 0:00:51.7]} 23. Nd5 {[%clk 0:01:07.3]} 23...
Qe5 {[%clk 0:00:51.4]} 24. Rfe1 {[%clk 0:01:00.9]} 24... Ne2 {[%clk 0:00:36.4]}
25. Qf3 {[%clk 0:00:56]} 25... Qxb2 {[%clk 0:00:25.5]} 26. Nxc7 {[%clk
0:00:51.2]} 26... Re5 {[%clk 0:00:23.2]} 27. Rd7 {[%clk 0:00:48.9]} 27... Rf8
{[%clk 0:00:21.7]} 28. Red1 {[%clk 0:00:34.2]} 28... Qxa2 {[%clk 0:00:22.4]} 29.
Rd8 {[%clk 0:00:30.8]} 29... Qxc4 {[%clk 0:00:18.7]} 30. Rxf8+ {[%clk
0:00:30.9]} 30... Kxf8 {[%clk 0:00:20.6]} 31. Rd8+ {[%clk 0:00:30.5]} 31... Ke7
{[%clk 0:00:22.2]} 32. Re8+ {[%clk 0:00:31.7]} 32... Kd6 {[%clk 0:00:22.7]} 33.
Qa3+ {[%clk 0:00:24.7]} 33... Kxc7 {[%clk 0:00:21.5]} 34. Rxe5 {[%clk
0:00:24.4]} 34... Qc6+ {[%clk 0:00:20.4]} 35. f3 {[%clk 0:00:23.2]} 35... Qa6
{[%clk 0:00:12.7]} 36. Qxa6 {[%clk 0:00:22.8]} 36... bxa6 {[%clk 0:00:13.7]} 37.
Rxe2 {[%clk 0:00:23.4]} 1-0

[Event "*** Titled Tuesday Blitz"]
[Site "Chess.com"]
[Date "2019.07.02"]
[Round "4"]
[White "KhazarBabazada"]
[Black "BakaPG"]
[Result "1/2-1/2"]
[WhiteElo "2664"]
[BlackElo "2724"]
[TimeControl "180+2"]
[EndTime "13:52:56 PDT"]
[Termination "Game drawn by agreement"]

1. e4 {[%clk 0:03:01.9]} 1... e6 {[%clk 0:02:59.9]} 2. d4 {[%clk 0:02:59.7]}
2... d5 {[%clk 0:02:59.7]} 3. Nc3 {[%clk 0:03:00.9]} 3... Nf6 {[%clk 0:03:00]}
4. e5 {[%clk 0:03:01.9]} 4... Nfd7 {[%clk 0:03:00.6]} 5. Nce2 {[%clk 0:03:03.5]}
5... c5 {[%clk 0:03:00.2]} 6. c3 {[%clk 0:03:04.9]} 6... Nc6 {[%clk 0:03:01.1]}
7. Nf3 {[%clk 0:03:06.4]} 7... cxd4 {[%clk 0:02:59.4]} 8. cxd4 {[%clk
0:03:05.4]} 8... Bb4+ {[%clk 0:03:00]} 9. Nc3 {[%clk 0:03:06.7]} 9... f6 {[%clk
0:02:57]} 10. exf6 {[%clk 0:02:51.7]} 10... Nxf6 {[%clk 0:02:57.2]} 11. Bd3
{[%clk 0:02:53]} 11... Ne4 {[%clk 0:02:52]} 12. O-O {[%clk 0:02:50.9]} 12...
Bxc3 {[%clk 0:02:29.6]} 13. bxc3 {[%clk 0:02:52.8]} 13... O-O {[%clk 0:02:30.6]}
14. Re1 {[%clk 0:02:49.1]} 14... Nxc3 {[%clk 0:02:26.1]} 15. Qc2 {[%clk
0:02:32.8]} 15... Ne4 {[%clk 0:02:23.9]} 16. Bxe4 {[%clk 0:02:33.4]} 16... dxe4
{[%clk 0:02:24.9]} 17. Qxe4 {[%clk 0:02:34.7]} 17... Qd5 {[%clk 0:02:21.5]} 18.
Qxd5 {[%clk 0:02:23.7]} 18... exd5 {[%clk 0:02:22]} 19. Ba3 {[%clk 0:02:25.3]}
19... Rd8 {[%clk 0:02:13.6]} 20. Be7 {[%clk 0:02:08.2]} 20... Re8 {[%clk
0:02:13.9]} 21. Bd6 {[%clk 0:02:05]} 21... Bf5 {[%clk 0:02:09.7]} 22. Rad1
{[%clk 0:01:58.5]} 22... Rad8 {[%clk 0:01:49.9]} 23. Rxe8+ {[%clk 0:01:55.3]}
23... Rxe8 {[%clk 0:01:50.8]} 24. Ne5 {[%clk 0:01:56.6]} 24... Na5 {[%clk
0:01:45.4]} 25. g4 {[%clk 0:01:46.1]} 25... Be6 {[%clk 0:01:37.6]} 26. Rc1
{[%clk 0:01:31.1]} 26... Nc4 {[%clk 0:01:37.4]} 27. Nxc4 {[%clk 0:01:09.2]}
27... dxc4 {[%clk 0:01:38.1]} 28. f3 {[%clk 0:01:10.7]} 28... b5 {[%clk
0:01:31.1]} 29. Kf2 {[%clk 0:01:09.9]} 29... a5 {[%clk 0:01:24.6]} 30. a3 {[%clk
0:01:09.2]} 30... Kf7 {[%clk 0:01:24.4]} 31. Rb1 {[%clk 0:01:01.9]} 31... Bd7
{[%clk 0:01:21.9]} 32. d5 {[%clk 0:00:23.6]} 32... c3 {[%clk 0:01:07.6]} 33. Rc1
{[%clk 0:00:24.5]} 33... Rc8 {[%clk 0:01:07.5]} 34. Ke3 {[%clk 0:00:25.2]} 34...
h5 {[%clk 0:00:40.2]} 35. h3 {[%clk 0:00:20.2]} 35... hxg4 {[%clk 0:00:40.3]}
36. hxg4 {[%clk 0:00:22.1]} 36... b4 {[%clk 0:00:32.1]} 37. axb4 {[%clk
0:00:24]} 37... a4 {[%clk 0:00:32]} 38. Be5 {[%clk 0:00:19.3]} 38... c2 {[%clk
0:00:27.7]} 39. Kd2 {[%clk 0:00:19.1]} 39... Rc4 {[%clk 0:00:28.4]} 40. Bc3
{[%clk 0:00:18.8]} 40... Rf4 {[%clk 0:00:20.7]} 41. Ke3 {[%clk 0:00:19.2]} 41...
Rc4 {[%clk 0:00:20.8]} 42. Kd2 {[%clk 0:00:19.4]} 42... Rf4 {[%clk 0:00:21.1]}
1/2-1/2

[Event "*** Titled Tuesday Blitz"]
[Site "Chess.com"]
[Date "2019.07.02"]
[Round "4"]
[White "Squirlolz"]
[Black "PabloZarnicki"]
[Result "1-0"]
[WhiteElo "2471"]
[BlackElo "2587"]
[TimeControl "180+2"]
[EndTime "13:53:02 PDT"]
[Termination "Squirlolz won by checkmate"]

1. e4 {[%clk 0:03:01.9]} 1... e6 {[%clk 0:02:56]} 2. d4 {[%clk 0:03:02.7]} 2...
d5 {[%clk 0:02:56.3]} 3. Nd2 {[%clk 0:03:04.4]} 3... Nc6 {[%clk 0:02:56.5]} 4.
Ngf3 {[%clk 0:03:05.2]} 4... Nf6 {[%clk 0:02:53.4]} 5. e5 {[%clk 0:03:06.6]}
5... Nd7 {[%clk 0:02:54.5]} 6. Nb3 {[%clk 0:03:08.3]} 6... a5 {[%clk 0:02:54.4]}
7. a4 {[%clk 0:03:09.9]} 7... b6 {[%clk 0:02:54.7]} 8. h4 {[%clk 0:03:05.9]}
8... Ncb8 {[%clk 0:02:52.2]} 9. c3 {[%clk 0:02:25.3]} 9... c5 {[%clk 0:02:45.2]}
10. Bf4 {[%clk 0:02:15.4]} 10... Ba6 {[%clk 0:02:43.5]} 11. Ng5 {[%clk
0:02:00.4]} 11... Bxf1 {[%clk 0:02:39.2]} 12. Kxf1 {[%clk 0:02:00.3]} 12... Be7
{[%clk 0:02:25.1]} 13. Qg4 {[%clk 0:01:49]} 13... h5 {[%clk 0:02:14.6]} 14. Qf3
{[%clk 0:01:39.1]} 14... Bxg5 {[%clk 0:02:14.5]} 15. hxg5 {[%clk 0:01:34]} 15...
g6 {[%clk 0:02:13.3]} 16. g4 {[%clk 0:01:33.5]} 16... h4 {[%clk 0:02:13.8]} 17.
Kg2 {[%clk 0:01:27.7]} 17... Nc6 {[%clk 0:02:09.3]} 18. Rh3 {[%clk 0:01:28.1]}
18... Qe7 {[%clk 0:02:01.4]} 19. Rah1 {[%clk 0:01:27.5]} 19... cxd4 {[%clk
0:01:51.1]} 20. cxd4 {[%clk 0:01:25.6]} 20... O-O-O {[%clk 0:01:50.3]} 21. Rxh4
{[%clk 0:01:17.4]} 21... Rhf8 {[%clk 0:01:48.5]} 22. Bd2 {[%clk 0:01:09.3]}
22... Kb7 {[%clk 0:01:43.4]} 23. Rh7 {[%clk 0:01:09.9]} 23... Rc8 {[%clk
0:01:25.3]} 24. Rc1 {[%clk 0:00:53.5]} 24... Ndb8 {[%clk 0:01:21.1]} 25. Qf6
{[%clk 0:00:48.3]} 25... Qe8 {[%clk 0:01:16]} 26. Qxg6 {[%clk 0:00:45.3]} 26...
Ne7 {[%clk 0:01:02.9]} 27. Rxc8 {[%clk 0:00:34.6]} 27... Kxc8 {[%clk 0:00:57]}
28. Qc2+ {[%clk 0:00:34.6]} 28... Kb7 {[%clk 0:00:49.9]} 29. g6 {[%clk
0:00:35.5]} 29... fxg6 {[%clk 0:00:43.3]} 30. Bxa5 {[%clk 0:00:11.2]} 30... bxa5
{[%clk 0:00:29.7]} 31. Qc5 {[%clk 0:00:10.7]} 31... Rf7 {[%clk 0:00:21.5]} 32.
Nxa5+ {[%clk 0:00:11.8]} 32... Ka8 {[%clk 0:00:17.2]} 33. Rxf7 {[%clk
0:00:09.3]} 33... Qxf7 {[%clk 0:00:18.4]} 34. Qc7 {[%clk 0:00:09.9]} 34... Nec6
{[%clk 0:00:02.9]} 35. Qxf7 {[%clk 0:00:11.8]} 35... Nxa5 {[%clk 0:00:03.9]} 36.
Qxe6 {[%clk 0:00:11.3]} 36... Nac6 {[%clk 0:00:02.1]} 37. Qxd5 {[%clk
0:00:12.3]} 37... Ka7 {[%clk 0:00:03.9]} 38. e6 {[%clk 0:00:12.8]} 38... Ne7
{[%clk 0:00:04.3]} 39. Qc5+ {[%clk 0:00:13.3]} 39... Ka6 {[%clk 0:00:04.9]} 40.
Qxe7 {[%clk 0:00:14.3]} 40... Nc6 {[%clk 0:00:06.8]} 41. Qd6 {[%clk 0:00:15.4]}
41... g5 {[%clk 0:00:07.7]} 42. Qxc6+ {[%clk 0:00:15.9]} 42... Ka5 {[%clk
0:00:09.4]} 43. Qb5# {[%clk 0:00:14]} 1-0